{"text_format":"1","workbook":"xlsx","n_sheets":9,"sheets":["Instructions","Data Reporting","Consortium","ROUTES","RUNS","STUDENTS","Parameters","School Boards","Consortia Boards"],"not_rendered":{"charts":0,"images":1,"macros":1,"external_links":2,"defined_names":7,"comments":0,"pivot_tables":0},"unopened":[],"bounds":{"document_bytes":16777216,"sheet_cells":100000,"rows_first":2000,"rows_last":500,"rows_between":2000,"halvings":0,"cell_chars":16384,"cell_head_chars":4096},"cells_cut":0,"cells_raw":0,"read":"whole","date_system":"1900"}

{"sheet":"Instructions","index":0,"n_rows":24,"n_cols":2,"rows_kept":24,"cut":false,"hidden":false,"merged":[[3,0,3,1],[8,0,8,1],[12,0,12,1],[22,0,22,1]]}
["The column titles for this worksheet are in row 4, 9, and 13. They span cells A4 to B4. The data spans cells A5 through B23. There is information in every cell for column A.  If you are not using a screen reader, you can press Alt + R, T for the Review Ribbon, Edit Comment to move to and open a Comment once you are on a cell with a Comment. When you are finished reading the Comment, press Escape to close the comment and return to the worksheet. If you are using the JAWS screen reader, press Ctrl + Shift + Apostrophe to get a list of Comments and their cell coordinates in the worksheet. Press Enter on the Comment you want to go to or Escape once you’ve read the Comment for a cell. You are returned to the workbook. Note that there is no keyboard command with JAWS to reread Comments or read Comments once you are on them in a cell. You must use the ability to list Comments in order to read them if you are using the JAWS screen reader."]
["Routing Simulation Instructions"]
["If you have any questions, please contact student.transportation@ontario.ca"]
["Submission Requirements"]
[1,"Consortia will submit completed routing simulation reports based on routing simulation results in the template provided."]
[2,"Student data inputs will be current 2021-22 school year as of October 31, 2021."]
[3,"Completed files are to be submitted by email to Student.Transportation@ontario.ca by December 17, 2021. "]
[]
["Routing Simulation Inputs"]
[1,"Similar to eligible enrolment under the Grants for Student Needs, for the purposes of the routing simulation, include all day school pupils of the board under the age of 21. Note that the following students should be excluded from the simulation:  \n\n•\tStudent enrolled in a provincial or demonstration school, or the Center Jules-Léger Consortium\n•\tStudent enrolled in Education Community Partnership Programs (Care and/or Treatment, Custody and Correctional (CTCC) Facilities formerly s23);\n•\tIndigenous student attending DSB school via tuition/fee agreement;\n•\tInternational student paying tuition to attend public school;\n•\tStudents in continuing education, high credit, summer school and adult day school\n\nNote that students who do not utilize transportation services or have opted out of transportation services should not be assigned to a vehicle in the routing simulation.  "]
[2,"To ensure that students are captured consistently in the routing simulation the following hierarchy should be followed when identifying eligible students:\n\nStudent Identification Hierarchy:\n   1. Eligible by Distance\n         a)Special Transportation Needs (STN)\n         b)General \n         c)Program\n   2. Special Transportation Needs (STN)\n   3. Hazard"]
[]
["Consortia Procedures for Conducting Routing Simulation"]
[1," Select consortium name in the consortium tab to populate the school board names in the reporting templates."]
[2,"Students should be from live database and represent the 2021-22 school year and should exclude the students noted under Eligible Students."]
[3,"Consortia will calibrate their routing solution to the province-wide common standard as outlined in the guideline document. Where no standard is specified consortia will retain existing parameters."]
[4,"Routing simulations will use existing consortia digital maps, which have been calibrated to local conditions such as travel speeds, and turning restrictions."]
[5,"Maximize route or run sharing between member boards."]
[6,"No restrictions on route or run sharing between member boards."]
[7,"No courtesy riders should be assigned to a vehicle. "]
[8,"In the runs tab insert the grade ranges for students weighted at 1.0 and students weighted at 1.5."]
[]
["Routing Simulation Outputs"]
[1,"Results of the routing simulation will be submitted to the ministry in the reports laid out in the enclosed spreadsheet and includes data input and reports on:\n* Consortium- Select consortium name so that member boards will populate in the input tables.\n* Students - Purpose of this report is to provide more detail on student transportation eligibility status, mode and service indicators.\n* Routes – Outlines all routes in the routing solution and the vehicle type, distances and times associated with each route.\n* Runs – Outlines all runs associated with each route, includes school boards serviced and number of students on each run. Parameters – Reporting of parameters currently in use to allow for comparison with parameters listed in the common standard."]

{"sheet":"Data Reporting","index":1,"n_rows":75,"n_cols":9,"rows_kept":75,"cut":false,"hidden":false,"merged":[[1,0,1,2],[2,0,2,2]]}
["The column titles for this worksheet are in row 6, 27, 37, and 70. They span cells A6 to C70. The data spans cells A7 through C75. If you are not using a screen reader, you can press Alt + R, T for the Review Ribbon, Edit Comment to move to and open a Comment once you are on a cell with a Comment. When you are finished reading the Comment, press Escape to close the comment and return to the worksheet. If you are using the JAWS screen reader, press Ctrl + Shift + Apostrophe to get a list of Comments and their cell coordinates in the worksheet. Press Enter on the Comment you want to go to or Escape once you’ve read the Comment for a cell. You are returned to the workbook. Note that there is no keyboard command with JAWS to reread Comments or read Comments once you are on them in a cell. You must use the ability to list Comments in order to read them if you are using the JAWS screen reader."]
["Data Reporting"]
["The tables below provide definitions and instructions on how to report each data field in the templates. Please ensure that all data fields are provided based on the instructions below."]
[]
["ROUTES and RUNS TABS"]
["Item","Field","Notes"]
[null,"Region","For Francobus only - Specify the region for each route."]
[null,"Route   ID","Unique reference number for each route."]
[null,"Vehicle Type","See Vehicle Table Below"]
[null,"Run ID","Unique reference number for each run."]
[null,"AM / PM / Mid-Day","Time of run"]
[null,"Board","Numeric school board ID (DSB_ID).  See school boards tab for reference."]
[null,"Regular students weighted at 1.0","Number of 1.0 weighted students on the run (specify grade range)."]
[null,"Regular students weighted at 1.5","Number of 1.5 weighted students on the run (specify grade range)."]
[null,"STN students","Number of Special Transportation Needs (STN) students on the run."]
[null,"Transfer students weighted at 1.0","Students who are transferring from previous run ID to a new run ID. Students who transfer to multiple run IDs may need to be reported in more than one row in Col. I."]
[null,"Transfer students weighted at 1.5","Students who are transferring from previous run ID to a new run ID. Students who transfer to multiple run IDs may need to be reported in more than one row in Col. J."]
[null,"Transfer STN","STN students who are transferring from previous run ID to a new run ID. Students who transfer to multiple run IDs may need to be reported in more than one row in Col. K."]
[null,"Deadhead km","Kilometres from the first student pick-up to the last student drop-off. (see Figure 1)"]
[null,"Slack/Link km","The kilometres that are neither deadhead nor run/load (e.g., kilometres between two runs or two schools). (see Figure 1)"]
[null,"Load km","The actual kilometres operated with students riding on the vehicle. This should be the total number of kilometres for all runs in each route ID."]
[null,"Deadhead time","The time from first student pick-up to the last student drop-off. (see Figure 1).  Time to be reported in fractional/decimal hours (e.g. 2.93 is two hours and 56 minutes)"]
[null,"Slack/Link time","The time that is neither deadhead nor run/load (e.g., kilometres between two runs or two schools). Time to be reported in fractional/decimal hours (e.g. 2.93 is two hours and 56 minutes)"]
[null,"Load time","The actual length of time with students riding on the vehicle. This should be the total number of hours along all runs in the route ID. (see Figure 1) Time to be reported in fractional/decimal hours (e.g. 2.93 is two hours and 56 minutes)",null,null,null,null,null,"Figure 1"]
[]
["VEHICLE DESCRIPTIONS"]
[null,"Vehicle Type","Description"]
[null,"Full-Size-Adapt","Chrome yellow or MFSAB, can include wheelchair, weighted passenger seating capacity 48 plus"]
[null,"Mid-Size","Chrome yellow or MFSAB, weighted passenger seating capacity of 30 to 48"]
[null,"Mid-Size-Adapt","Chrome yellow or MFSAB, can include wheelchair, weighted passenger seating capacity of 30 to 48"]
[null,"Mini-Size","Chrome yellow or MFSAB, weighted passenger seating capacity up to 30"]
[null,"Mini-Size-Adapt","Chrome yellow or MFSAB, can include wheelchair, passenger seating capacity up to 30"]
[null,"Passenger Vehicle","Passenger vehicles including sedans, vans, and mini-vans, where passenger seating capacity may be up to 7.  Exclude taxis."]
[null,"Van-Accessible","Physically disabled passenger vehicle, carries both w/c and ambulatory.  Exclude Taxis. "]
[]
["STUDENT TAB"]
["Item","Field","Notes"]
[1,"ALL STUDENTS","Students should be from live database and represent the 2021-22 school year. Specific student inclusions and exclusions are listed in the instructions Tab."]
["A","# Eligible based on Home-To-School Distance","Calculated Field (A1+A2+A3+A4)"]
["A.1","Special Transportation Needs (STN)","Student has been identified by school board as requiring special transportation (e.g. through IPRC or IEP process). Student has a medical condition requiring special transportation and has provided approved documentation such as an application/request form and/or medical note. Student is attending a designated specialized program or approved local treatment centre."]
["A.2","Program Student (FI, Magnet, Gifted)","Students enrolled in a program living within the attendance boundary and eligible by distance.  Includes French Immersion (includes extended French), Gifted, and Magnet (arts, technical, International Baccalaureate etc.) programs."]
["A.3","General","These are students receiving transportation due to distance and do not have any special transportation needs and are transported to their designated school."]
["A.4","To another school due to capacity","These are students receiving transportation to a school other than the designated school due to capacity issues at the designated school."]
["B","# Eligible other than Distance","Calculated Field (B1+B2)"]
["B1","Special Transportation Needs (STN)","Student has been identified by school board as requiring special transportation (e.g. through IPRC or IEP process). Student has a medical condition requiring special transportation and has provided approved documentation such as an application/request form and/or medical note. Student is attending a designated specialized program or approved local treatment centre."]
["B2","Hazard","Student not eligible by distance and not STN eligible, but meets hazard criteria threshold set by consortia/board based on criteria such as: Multi lane roads with higher speed limits and higher volumes of traffic; Infrastructure and physical characteristics i.e. without sidewalks and/or controlled crossings (stop sign, traffic light, crosswalk, crossing guard), body of water; Railway crossings (not signaled); Other safety factors identified by authorities such as Police."]
[2,"TOTAL TO BE TRANSPORTED","Calculated field (A+B)"]
[]
[null,"Mode of Transportation"]
[null,"# on Public Transit","Number of eligible students assigned to public transit for their AM/PM home to school transportation"]
[null,"# on other vehicles","Number of students assigned to passenger vehicles, accessible vans"]
[null,"# on buses","Number of students assigned to school buses (Full-size, Full-size adapt, Mid-size, Mid-size adapt, Mini-size, Mini-size adapt)"]
[null,"Student Service Indicators"]
[null,"Average home to designated school distance (eligible students)","Report average home to designated school distance for all students eligible based on distance (A - in STUDENT TAB) by grade."]
[null,"# of STUDENTS above average distance","Report the total number of students eligible based on distance above the average distance (in km)."]
[null,"# of STUDENTS above average distance X 2","Report the total number of students eligible based on distance above twice the average distance (in km)."]
[null,"Average Ride-Time (in mins)","Report average ride time for all eligible students (A+B). "]
[null,"# STUDENTS With RIDE TIME > 60 mins","Number of students with ride times greater than the maximum parameter of 60 mins."]
[null,"Max Ride Time (min)","Maximum student ride time"]
[null,"# of STUDENTS above average ride time","Number of students with ride times above the average."]
[null,"# of STUDENTS with ride times < 15 mins","Number of students with ride times less than 15 minutes."]
[null,"Average distance between Home to Stop","Average distance between home to stop in km"]
[null,"Max walk to stop (km)","Maximum student walk to stop distance"]
[null,"# STUDENTS with HOME STOPS","Number of students with home stops."]
[null,"# STUDENTS with walk to stop > average","Number of students with distance to stop longer than the average."]
[null,"# STUDENTS with multiple addresses","Number of students with multiple addresses."]
[]
[]
["PARAMETERS TAB"]
["Item","Field","Notes"]
[1,"Walk Distance Eligibility Policy","Report current walk distance eligibility policy for all member boards.  If boards have one policy report under general.  For separate rural and urban walk distances report in the rural and urban leaving general blank."]
[5,"Walk to Stop Distance","Report maximum walk to stop distance policy for all member boards.  If boards have one policy report under general.  For separate rural and urban walk distances report in the rural and urban leaving general blank."]
[6,"Load Factor Capacity for Buses","Report current weighting factor for consortium buses.  Specify grade ranges in column D and weighting factor in column E."]
[7,"Maximum Ride time Guideline","Report current maximum ride time guideline or policy for the consortium.  Specify grade ranges in column D and time in column E."]
[8,"Arrival and Departure window","Report current arrival and departure window times. If there is one policy for all schools report in row 35, if separate elementary and secondary policies report in row 37 and 38."]

{"sheet":"Consortium","index":2,"n_rows":8,"n_cols":3,"rows_kept":8,"cut":false,"hidden":false,"merged":[]}
["The column titles for this worksheet are in row 8. They span cells C8. The data spans cells C9 through C13. If you are not using a screen reader, you can press Alt + R, T for the Review Ribbon, Edit Comment to move to and open a Comment once you are on a cell with a Comment. When you are finished reading the Comment, press Escape to close the comment and return to the worksheet. If you are using the JAWS screen reader, press Ctrl + Shift + Apostrophe to get a list of Comments and their cell coordinates in the worksheet. Press Enter on the Comment you want to go to or Escape once you’ve read the Comment for a cell. You are returned to the workbook. Note that there is no keyboard command with JAWS to reread Comments or read Comments once you are on them in a cell. You must use the ability to list Comments in order to read them if you are using the JAWS screen reader.",null,"Student Transportation Funding Formula Review"]
[null,null,"2021-22 Routing Simulation Submission"]
[]
[]
[null,"Select Consortium Name:"]
[]
[]
[null,null,"Member School Boards"]

{"sheet":"ROUTES","index":3,"n_rows":3,"n_cols":15,"rows_kept":3,"cut":false,"hidden":false,"merged":[]}
["The column titles for this worksheet are in row 3. They span cells B3 to O3. If you are not using a screen reader, you can press Alt + R, T for the Review Ribbon, Edit Comment to move to and open a Comment once you are on a cell with a Comment. When you are finished reading the Comment, press Escape to close the comment and return to the worksheet. If you are using the JAWS screen reader, press Ctrl + Shift + Apostrophe to get a list of Comments and their cell coordinates in the worksheet. Press Enter on the Comment you want to go to or Escape once you’ve read the Comment for a cell. You are returned to the workbook. Note that there is no keyboard command with JAWS to reread Comments or read Comments once you are on them in a cell. You must use the ability to list Comments in order to read them if you are using the JAWS screen reader."]
[]
[null,"Region\n(Francobus only)","Route   ID","Vehicle Type","Deadhead km","Slack/Link km","Load km","Total Distance (Km)","Deadhead time (hrs)","Slack/Link time (hrs)","Load time (hrs)","Total Time (hrs)","Total AM Runs","Total PM Runs","Total Mid Day Runs"]

{"sheet":"RUNS","index":4,"n_rows":5,"n_cols":12,"rows_kept":5,"cut":false,"hidden":false,"merged":[[2,5,2,7]]}
["The column titles for this worksheet are in row 4. They span cells B4 to L4. The data spans cells B5 through L177. If you are not using a screen reader, you can press Alt + R, T for the Review Ribbon, Edit Comment to move to and open a Comment once you are on a cell with a Comment. When you are finished reading the Comment, press Escape to close the comment and return to the worksheet. If you are using the JAWS screen reader, press Ctrl + Shift + Apostrophe to get a list of Comments and their cell coordinates in the worksheet. Press Enter on the Comment you want to go to or Escape once you’ve read the Comment for a cell. You are returned to the workbook. Note that there is no keyboard command with JAWS to reread Comments or read Comments once you are on them in a cell. You must use the ability to list Comments in order to read them if you are using the JAWS screen reader."]
[]
[]
[null,"Route   ID","Run ID","Schedule (AM / PM / Mid-Day)","Board","Students weighted at 1.0 (insert grade range)","Students weighted at 1.5 (insert grade range)","STN students","Transfer students weighted as 1.0","Transfer students weighted at 1.5","Transfer STN","Total riders on this run"]
[null,null,null,null,null,null,null,null,"Report student here if they are transferring from another run onto new vehicle","Report student here if they are transferring from another run onto new vehicle","Report student here if they are transferring from another run onto new vehicle"]

{"sheet":"STUDENTS","index":5,"n_rows":44,"n_cols":34,"rows_kept":44,"cut":false,"hidden":false,"merged":[[43,5,43,8],[43,10,43,13],[43,15,43,18],[43,20,43,23],[43,25,43,28],[42,5,42,8],[42,10,42,13],[42,15,42,18],[42,20,42,23],[42,25,42,28],[24,5,24,8],[30,5,30,8],[31,5,31,8],[33,5,33,8],[37,5,37,8],[38,5,38,8],[40,5,40,8],[37,10,37,13],[38,10,38,13],[40,10,40,13],[24,20,24,23],[30,20,30,23],[31,20,31,23],[33,20,33,23],[24,10,24,13],[30,10,30,13],[31,10,31,13],[33,10,33,13],[24,15,24,18],[30,15,30,18],[31,15,31,18],[33,15,33,18],[38,15,38,18],[40,15,40,18],[37,20,37,23],[38,20,38,23],[40,20,40,23],[37,15,37,18],[33,25,33,28],[37,25,37,28],[38,25,38,28],[40,25,40,28],[25,30,25,33],[26,30,26,33],[24,25,24,28],[30,25,30,28],[31,25,31,28],[24,30,24,33],[30,30,30,33],[31,30,31,33],[43,30,43,33],[32,30,32,33],[28,30,28,33],[29,30,29,33],[36,30,36,33],[39,30,39,33],[37,30,37,33],[38,30,38,33],[40,30,40,33],[33,30,33,33]]}
["The column titles for this worksheet are in row 1 and 2. They span cells B1 to AH2. The data spans cells B1 through AH44. If you are not using a screen reader, you can press Alt + R, T for the Review Ribbon, Edit Comment to move to and open a Comment once you are on a cell with a Comment. When you are finished reading the Comment, press Escape to close the comment and return to the worksheet. If you are using the JAWS screen reader, press Ctrl + Shift + Apostrophe to get a list of Comments and their cell coordinates in the worksheet. Press Enter on the Comment you want to go to or Escape once you’ve read the Comment for a cell. You are returned to the workbook. Note that there is no keyboard command with JAWS to reread Comments or read Comments once you are on them in a cell. You must use the ability to list Comments in order to read them if you are using the JAWS screen reader.",null,null,null,null,{"$f":"IF(Consortium!C9=\"\", \"\", Consortium!C9)","v":""},null,null,null,null,{"$f":"IF(Consortium!C10=\"\", \"\", Consortium!C10)","v":""},null,null,null,null,{"$f":"IF(Consortium!C11=\"\", \"\", Consortium!C11)","v":""},null,null,null,null,{"$f":"IF(Consortium!C12=\"\", \"\", Consortium!C12)","v":""},null,null,null,null,{"$f":"IF(Consortium!C13=\"\", \"\", Consortium!C13)","v":""},null,null,null,null,"CONSORTIUM TOTAL"]
[null,"Formula","Line #",null,null,"JK-SK","Gr1-8","Gr9-12","Brd A TOTAL",null,"JK-SK","Gr1-8","Gr9-12","Brd A TOTAL",null,"JK-SK","Gr1-8","Gr9-12","Brd C Total",null,"JK-SK",null,"Gr9-12","Brd D Total",null,"JK-SK","Gr1-8","Gr9-12","Brd E Total",null,"JK-SK","Gr1-8","Gr9-12","TOTAL"]
[null,null,1,"ALL STUDENTS",null,null,null,null,null,null,null,null,null,null,null,null,null,null,null,null,null,null,null,{"$f":"SUM(U3:W3)","v":0},null,null,null,null,{"$f":"SUM(Z3:AB3)","v":0},null,{"$f":"F3+K3+P3+U3+Z3","v":0},{"$f":"G3+L3+Q3+V3+AA3","v":0},{"$f":"H3+M3+R3+W3+AB3","v":0},{"$f":"I3+N3+S3+X3+AC3","v":0}]
[null,"ELIGIBLITY"]
[null,"A.1 + A.2+A.3+A.4","A","# Eligible based on Home-To-School Distance",null,{"$f":"SUM(F6:F9)","v":0},{"$f":"SUM(G6:G9)","v":0},{"$f":"SUM(H6:H9)","v":0},{"$f":"SUM(F5:H5)","v":0},null,{"$f":"SUM(K8:K9)","v":0},0,0,{"$f":"SUM(K5:M5)","v":0},null,{"$f":"SUM(P8:P9)","v":0},0,0,{"$f":"SUM(P5:R5)","v":0},null,{"$f":"SUM(U8:U9)","v":0},0,0,{"$f":"SUM(U5:W5)","v":0},null,{"$f":"SUM(Z8:Z9)","v":0},0,0,{"$f":"SUM(Z5:AB5)","v":0},null,{"$f":"F5+K5+P5+U5+Z5","v":0},{"$f":"G5+L5+Q5+V5+AA5","v":0},{"$f":"H5+M5+R5+W5+AB5","v":0},{"$f":"I5+N5+S5+X5+AC5","v":0}]
[null,null,"A.1","Special Transportation Needs(STN)",null,null,null,null,{"$f":"SUM(F6:H6)","v":0},null,null,null,null,{"$f":"SUM(K6:M6)","v":0},null,null,null,null,{"$f":"SUM(P6:R6)","v":0},null,null,null,null,{"$f":"SUM(U6:W6)","v":0},null,null,null,null,{"$f":"SUM(Z6:AB6)","v":0}]
[null,null,"A.2","Program Student (FI, Magnet, Gifted)",null,null,null,null,0,null,null,null,null,0,null,null,null,null,0,null,null,null,null,0,null,null,null,null,0,null,{"$f":"F7+K7+P7+U7+Z7","v":0},0,0,{"$f":"I7+N7+S7+X7+AC7","v":0}]
[null,null,"A.3","General",null,null,null,null,0,null,null,null,null,0,null,null,null,null,0,null,null,null,null,0,null,null,null,null,0,null,0,0,0,{"$f":"I8+N8+S8+X8+AC8","v":0}]
[null,null,"A.4","To another school due capacity",null,null,null,null,0,null,null,null,null,0,null,null,null,null,0,null,null,null,null,0,null,null,null,null,0,null,0,0,0,{"$f":"I9+N9+S9+X9+AC9","v":0}]
[]
[null,"B.1+B.2","B","# Eligible other than Distance",null,{"$f":"SUM(F12:F13)","v":0},{"$f":"SUM(G12:G13)","v":0},0,{"$f":"SUM(F11:H11)","v":0},null,{"$f":"SUM(K12:K13)","v":0},{"$f":"SUM(L12:L13)","v":0},0,{"$f":"SUM(K11:M11)","v":0},null,{"$f":"SUM(P12:P13)","v":0},{"$f":"SUM(Q12:Q13)","v":0},{"$f":"SUM(R12:R13)","v":0},{"$f":"SUM(P11:R11)","v":0},null,{"$f":"SUM(U12:U13)","v":0},{"$f":"SUM(V12:V13)","v":0},0,{"$f":"SUM(U11:W11)","v":0},null,{"$f":"SUM(Z12:Z13)","v":0},{"$f":"SUM(AA12:AA13)","v":0},0,{"$f":"SUM(Z11:AB11)","v":0},null,{"$f":"F11+K11+P11+U11+Z11","v":0},{"$f":"G11+L11+Q11+V11+AA11","v":0},{"$f":"H11+M11+R11+W11+AB11","v":0},{"$f":"I11+N11+S11+X11+AC11","v":0}]
[null,null,"B.1","Special Transportation Needs (STN)",null,null,null,null,{"$f":"SUM(F12:H12)","v":0},null,null,null,null,{"$f":"SUM(K12:M12)","v":0},null,null,null,null,{"$f":"SUM(P12:R12)","v":0},null,null,null,null,{"$f":"SUM(U12:W12)","v":0},null,null,null,null,{"$f":"SUM(Z12:AB12)","v":0},null,{"$f":"F12+K12+P12+U12+Z12","v":0},{"$f":"G12+L12+Q12+V12+AA12","v":0},0,{"$f":"I12+N12+S12+X12+AC12","v":0}]
[null,null,"B.2","Hazard",null,null,null,null,{"$f":"SUM(F13:H13)","v":0},null,null,null,null,0,null,null,null,null,0,null,null,null,null,0,null,null,null,null,0,null,0,0,0,{"$f":"I13+N13+S13+X13+AC13","v":0}]
[]
[null,"A+B",2,"TOTAL TO BE TRANSPORTED",null,{"$f":"F5+F11","v":0},{"$f":"G5+G11","v":0},0,{"$f":"SUM(F15:H15)","v":0},null,{"$f":"K5+K11","v":0},{"$f":"L5+L11","v":0},0,{"$f":"SUM(K15:M15)","v":0},null,{"$f":"P5+P11","v":0},{"$f":"Q5+Q11","v":0},0,{"$f":"SUM(P15:R15)","v":0},null,{"$f":"U5+U11","v":0},{"$f":"V5+V11","v":0},0,{"$f":"SUM(U15:W15)","v":0},null,{"$f":"Z5+Z11","v":0},{"$f":"AA5+AA11","v":0},0,{"$f":"SUM(Z15:AB15)","v":0},null,{"$f":"F15+K15+P15+U15+Z15","v":0},0,0,{"$f":"I15+N15+S15+X15+AC15","v":0}]
[]
[null,"MODE OF TRANSPORTATION"]
[null,null,null,"# on Public Transit",null,null,null,null,{"$f":"SUM(F18:H18)","v":0},null,null,null,null,{"$f":"SUM(K18:M18)","v":0},null,null,null,null,{"$f":"SUM(P18:R18)","v":0},null,null,null,null,{"$f":"SUM(U18:W18)","v":0},null,null,null,null,{"$f":"SUM(Z18:AB18)","v":0},null,{"$f":"F18+K18+P18+U18+Z18","v":0},0,0,{"$f":"I18+N18+S18+X18+AC18","v":0}]
[null,null,null,"# on Other Vehicles",null,null,null,null,0,null,null,null,null,0,null,null,null,null,0,null,null,null,null,0,null,null,null,null,0,null,0,0,0,{"$f":"I19+N19+S19+X19+AC19","v":0}]
[null,null,null,"# on Buses",null,null,null,null,0,null,null,null,null,0,null,null,null,null,0,null,null,null,null,0,null,null,null,null,0,null,0,0,0,{"$f":"I20+N20+S20+X20+AC20","v":0}]
[]
[null,"STUDENT SERVICE INDICATORS"]
[]
[null,null,null,"Home to School Distance"]
[null,null,"a.","Average distance between home and designated school"]
[null,null,"b.","# of students above average distance"]
[null,null,"c.","# students above average distance X 2"]
[]
[null,null,null,"Ride Time"]
[null,null,"a.","Average Ride-Time"]
[null,null,"b.","# students with ride-time > 60 mins"]
[null,null,"c.","Max Ride Time (in min)"]
[null,null,"d.","# students above average ride time"]
[null,null,"e.","# students with ride time less than 15 mins"]
[]
[null,null,null,"Home to Stop Distance"]
[null,null,"a.","Average distance between home to stop"]
[null,null,"b.","# Students with walk to stop > common parameter"]
[null,null,"c.","Longest walk-to-stop (distance in km)"]
[null,null,"d.","# Students with walk to stop > Average"]
[null,null,"e.","# Students with home stops"]
[]
[null,null,null,"Multiple Address Students"]
[null,null,"a.","# of students with multiple addresses"]

{"sheet":"Parameters","index":6,"n_rows":39,"n_cols":36,"rows_kept":39,"cut":false,"hidden":false,"merged":[]}
["The column titles for this worksheet are in rows 5 and 14. They span cells B5 to AJ5 and B14 to AJ14. The data spans cells B6 through AJ10 and B15 to AJ19. If you are not using a screen reader, you can press Alt + R, T for the Review Ribbon, Edit Comment to move to and open a Comment once you are on a cell with a Comment. When you are finished reading the Comment, press Escape to close the comment and return to the worksheet. If you are using the JAWS screen reader, press Ctrl + Shift + Apostrophe to get a list of Comments and their cell coordinates in the worksheet. Press Enter on the Comment you want to go to or Escape once you’ve read the Comment for a cell. You are returned to the workbook. Note that there is no keyboard command with JAWS to reread Comments or read Comments once you are on them in a cell. You must use the ability to list Comments in order to read them if you are using the JAWS screen reader."]
[null,"Board and Consortia Parameters for 2021-22 SY"]
[]
[1,"General Walk Distance Eligibility Policy ",null,null,null,null,null,null,null,null,null,null,null,"Walk Distance Eligibility Policy Urban",null,null,null,null,null,null,null,null,null,null,null,"Walk Distance Eligibility Policy Rural"]
[null,"Grade","JK/SK","Gr 1","Gr 2","Gr 3","Gr 4","Gr 5 ","Gr 6 ","Gr 7","Gr 8","Gr 9-12",null,"Grade","JK/SK","Gr 1","Gr 2","Gr 3","Gr 4","Gr 5 ","Gr 6 ","Gr 7","Gr 8","Gr 9-12",null,"Grade","JK/SK","Gr 1","Gr 2","Gr 3","Gr 4","Gr 5 ","Gr 6 ","Gr 7","Gr 8","Gr 9-12"]
[null,"Board A",null,null,null,null,null,null,null,null,null,null,null,"Board A",null,null,null,null,null,null,null,null,null,null,null,"Board A"]
[null,"Board B",null,null,null,null,null,null,null,null,null,null,null,"Board B",null,null,null,null,null,null,null,null,null,null,null,"Board B"]
[null,"Board C",null,null,null,null,null,null,null,null,null,null,null,"Board C",null,null,null,null,null,null,null,null,null,null,null,"Board C"]
[null,"Board D",null,null,null,null,null,null,null,null,null,null,null,"Board D",null,null,null,null,null,null,null,null,null,null,null,"Board D"]
[null,"Board E",null,null,null,null,null,null,null,null,null,null,null,"Board E",null,null,null,null,null,null,null,null,null,null,null,"Board E"]
[]
[]
[5,"Walk-to-stop Distance",null,null,null,null,null,null,null,null,null,null,null,"Walk-to-stop Distance Urban",null,null,null,null,null,null,null,null,null,null,null,"Walk-to-stop Distance Rural"]
[null,"Grade","JK/SK","Gr 1","Gr 2","Gr 3","Gr 4","Gr 5 ","Gr 6 ","Gr 7","Gr 8","Gr 9-12",null,"Grade","JK/SK","Gr 1","Gr 2","Gr 3","Gr 4","Gr 5 ","Gr 6 ","Gr 7","Gr 8","Gr 9-12",null,"Grade","JK/SK","Gr 1","Gr 2","Gr 3","Gr 4","Gr 5 ","Gr 6 ","Gr 7","Gr 8","Gr 9-12"]
[null,"Board A",null,null,null,null,null,null,null,null,null,null,null,"Board A",null,null,null,null,null,null,null,null,null,null,null,"Board A"]
[null,"Board B",null,null,null,null,null,null,null,null,null,null,null,"Board B",null,null,null,null,null,null,null,null,null,null,null,"Board B"]
[null,"Board C",null,null,null,null,null,null,null,null,null,null,null,"Board C",null,null,null,null,null,null,null,null,null,null,null,"Board C"]
[null,"Board D",null,null,null,null,null,null,null,null,null,null,null,"Board D",null,null,null,null,null,null,null,null,null,null,null,"Board D"]
[null,"Board E",null,null,null,null,null,null,null,null,null,null,null,"Board E",null,null,null,null,null,null,null,null,null,null,null,"Board E"]
[]
[]
[6,"Load Factor Capacity for Buses"]
[null,null,null,null,"Weight"]
[null,null,"Grades","xx-xx"]
[null,null,"Grades","xx-xx"]
[]
[7,"Maximum Ride time Guideline"]
[null,null,null,"One policy",null,"minutes"]
[]
[null,null,null,"Differentiated policy"]
[null,null,"Grades","xx-xx",null,"minutes"]
[null,null,"Grades","xx-xx",null,"minutes"]
[]
[8,"Arrival and Departure window"]
[null,null,null,"One policy",null,"minutes"]
[]
[null,null,null,"Differentiated policy"]
[null,null,null,"Elementary",null,"minutes"]
[null,null,null,"Secondary",null,"minutes"]

{"sheet":"School Boards","index":7,"n_rows":74,"n_cols":12,"rows_kept":74,"cut":false,"hidden":true,"merged":[]}
["DSB_ID","DSB_NO","Board Names","NorthSouth","UrbanRural","Support","Language","Region",null,"Grade List","Long distance","Language"]
[28010,2,"Algoma DSB","North","Northern Ont rural/urban","Public","English","North East",null,"JK",200,"English"]
[67202,55,"Algonquin & Lakeshore Cath DSB","South","Southern Ont rural/urban","Separate","English","East",null,"SK",null,"change to \"French\" in french version "]
[66010,8,"Avon Maitland DSB","South","Southern Ont rural","Public","English","South West",null,1,null,"and hide columns J to L"]
[66001,7,"Bluewater DSB","South","Southern Ont rural","Public","English","South West",null,2]
[67164,51,"Brant Haldimand Norfolk CDSB","South","Southern Ont rural/urban","Separate","English","Central",null,3]
[67008,35,"Bruce-Grey Catholic DSB","South","Southern Ont rural","Separate","English","South West",null,4]
[67172,52,"Cath DSB of Eastern Ontario","South","Southern Ont rural","Separate","English","East",null,5]
[66311,59,"CEP de l'Est de l'Ontario","South","Southern Ont rural/urban","Public","French","East",null,6]
[66303,58,"Conseil scolaire Viamonde","South","Southern Ont rural/urban","Public","French","GTA",null,7]
[67318,64,"CSC MonAvenir","South","Southern Ont rural/urban","Separate","French","GTA",null,8]
[67300,63,"CSC Providence","South","Southern Ont rural/urban","Separate","French","South West",null,9]
[67334,66,"CSD cath. Centre-Est de l'Ont.","South","Southern Ont rural/urban","Separate","French","East",null,10]
[67326,65,"CSD cath. de l'Est ontarien","South","Southern Ont rural","Separate","French","East",null,11]
[29130,62,"CSD cath. des Aurores boréales","North","Northern Ont rural/urban","Separate","French","North West",null,12]
[29106,60.1,"CSD cath. des Grandes Rivières","North","Northern Ont rural","Separate","French","North East",null,"NA"]
[29122,61,"CSD cath. du Nouvel-Ontario","North","Northern Ont rural/urban","Separate","French","North East"]
[29114,60.2,"CSD catholique Franco-Nord","North","Northern Ont rural/urban","Separate","French","North East"]
[28100,56,"CSD du Nord-Est de l'Ontario","North","Northern Ont rural/urban","Public","French","North East"]
[28118,57,"CSP du Grand Nord de l'Ontario","North","Northern Ont rural/urban","Public","French","North East"]
[66150,22,"DSB of Niagara","South","Southern Ont rural/urban","Public","English","Central"]
[28002,1,"DSB Ontario North East","North","Northern Ont rural/urban","Public","English","North East"]
[67083,43,"Dufferin-Peel Catholic DSB","South","Suburban - GTA excluding French boards","Separate","English","GTA"]
[67105,45,"Durham Catholic DSB","South","Suburban - GTA excluding French boards","Separate","English","GTA"]
[66060,13,"Durham DSB","South","Suburban - GTA excluding French boards","Public","English","GTA"]
[66168,23,"Grand Erie DSB","South","Southern Ont rural/urban","Public","English","Central"]
[66028,9,"Greater Essex County DSB","South","Southern Ont rural/urban","Public","English","South West"]
[67113,46,"Halton Catholic DSB","South","Suburban - GTA excluding French boards","Separate","English","GTA"]
[66133,20,"Halton DSB","South","Suburban - GTA excluding French boards","Public","English","GTA"]
[67121,47,"Hamilton-Wentworth Cath DSB","South","Southern Ont rural/urban","Separate","English","Central"]
[66141,21,"Hamilton-Wentworth DSB","South","Southern Ont rural/urban","Public","English","Central"]
[66222,29,"Hastings & Prince Edward DSB","South","Southern Ont rural/urban","Public","English","East"]
[67016,36,"Huron-Perth Catholic DSB","South","Southern Ont rural","Separate","English","South West"]
[29025,31,"Huron-Superior Catholic DSB","North","Northern Ont rural/urban","Separate","English","North East"]
[66079,14,"Kawartha Pine Ridge DSB","South","Southern Ont rural/urban","Public","English","Central"]
[28045,5.0999999999999996,"Keewatin-Patricia DSB","North","Northern Ont rural","Public","English","North West"]
[29050,33.200000000000003,"Kenora Catholic DSB","North","Northern Ont rural","Separate","English","North West"]
[28061,6.1,"Lakehead DSB","North","Northern Ont rural/urban","Public","English","North West"]
[66036,10,"Lambton Kent DSB","South","Southern Ont rural/urban","Public","English","South West"]
[66206,27,"Limestone DSB","South","Southern Ont rural/urban","Public","English","East"]
[67032,38,"London Dist. Catholic School","South","Southern Ont rural/urban","Separate","English","South West"]
[28037,4,"Near North DSB","North","Northern Ont rural/urban","Public","English","North East"]
[67156,50,"Niagara Catholic DSB","South","Southern Ont rural/urban","Separate","English","Central"]
[29017,30.2,"Nipissing-Parry Sound Cath DSB","North","Northern Ont rural/urban","Separate","English","North East"]
[29009,30.1,"Northeastern Catholic DSB","North","Northern Ont rural/urban","Separate","English","North East"]
[29041,33.1,"Northwest Catholic DSB","North","Northern Ont rural","Separate","English","North West"]
[67180,53,"Ottawa Catholic DSB","South","Southern Ont rural/urban","Separate","English","East"]
[66184,25,"Ottawa-Carleton DSB","South","Southern Ont rural/urban","Public","English","East"]
[66125,19,"Peel DSB","South","Suburban - GTA excluding French boards","Public","English","GTA"]
[67067,41,"PVNC Catholic DSB","South","Southern Ont rural/urban","Separate","English","Central"]
[28029,3,"Rainbow DSB","North","Northern Ont rural/urban","Public","English","North East"]
[28053,5.2,"Rainy River DSB","North","Northern Ont rural","Public","English","North West"]
[67199,54,"Renfrew County Catholic DSB","South","Southern Ont rural","Separate","English","East"]
[66214,28,"Renfrew County DSB","South","Southern Ont rural","Public","English","East"]
[66109,17,"Simcoe County DSB","South","Southern Ont rural/urban","Public","English","Central"]
[67091,44,"Simcoe Muskoka Catholic DSB","South","Southern Ont rural/urban","Separate","English","Central"]
[67040,39,"St. Clair Catholic DSB","South","Southern Ont rural/urban","Separate","English","South West"]
[29033,32,"Sudbury Catholic DSB","North","Northern Ont rural/urban","Separate","English","North East"]
[29076,34.200000000000003,"Superior North Catholic DSB","North","Northern Ont rural","Separate","English","North West"]
[28070,6.2,"Superior-Greenstone DSB","North","Northern Ont rural","Public","English","North West"]
[66044,11,"Thames Valley DSB","South","Southern Ont rural/urban","Public","English","South West"]
[29068,34.1,"Thunder Bay Catholic DSB","North","Northern Ont rural/urban","Separate","English","North West"]
[67059,40,"Toronto Catholic DSB","South","Urban - Toronto boards","Separate","English","GTA"]
[66052,12,"Toronto DSB","South","Urban - Toronto boards","Public","English","GTA"]
[66087,15,"Trillium Lakelands DSB","South","Southern Ont rural","Public","English","Central"]
[66192,26,"Upper Canada DSB","South","Southern Ont rural","Public","English","East"]
[66117,18,"Upper Grand DSB","South","Southern Ont rural/urban","Public","English","Central"]
[67148,49,"Waterloo Catholic DSB","South","Southern Ont rural/urban","Separate","English","Central"]
[66176,24,"Waterloo Region DSB","South","Southern Ont rural/urban","Public","English","Central"]
[67130,48,"Wellington Catholic DSB","South","Southern Ont rural/urban","Separate","English","Central"]
[67024,37,"Windsor-Essex Catholic DSB","South","Southern Ont rural/urban","Separate","English","South West"]
[67075,42,"York Catholic DSB","South","Suburban - GTA excluding French boards","Separate","English","GTA"]
[66095,16,"York Region DSB","South","Suburban - GTA excluding French boards","Public","English","GTA"]
[22222,99,"Indigenous Students","N/A","N/A","N/A","N/A","N/A"]

{"sheet":"Consortia Boards","index":8,"n_rows":93,"n_cols":14,"rows_kept":93,"cut":false,"hidden":true,"merged":[]}
["Consortia #","Consortia Name","Board ID","Board Num","Board Name",null,null,null,null,null,null,null,"Site #","Site Name"]
[26,"Algoma",28010,2,"Algoma DSB",null,null,null,null,null,null,null,26,"Algoma & Huron Superior Transportation Services"]
[26,"Algoma",29122,61,"CSD cath. du Nouvel-Ontario",null,null,null,null,null,null,null,2,"Chatham Kent & Lambton Administrative School Services (C.L.A.S.S.)"]
[26,"Algoma",28118,57,"CSP du Grand Nord de l'Ontario",null,null,null,null,null,null,null,32,"Consortium de transport scolaire de l'Est"]
[26,"Algoma",29025,31,"Huron-Superior Catholic DSB",null,null,null,null,null,null,null,33,"Consortium de Transport Scolaire d'Ottawa"]
[6,"Brant-Haldimand-Norfolk",67164,51,"Brant Haldimand Norfolk CDSB",null,null,null,null,null,null,null,34,"CSD catholique des Grandes Rivières"]
[6,"Brant-Haldimand-Norfolk",67318,64,"CSC MonAvenir",null,null,null,null,null,null,null,16,"Durham Student Transportation Services"]
[6,"Brant-Haldimand-Norfolk",66168,23,"Grand Erie DSB",null,null,null,null,null,null,null,27,"East of Thunder Bay Transportation Consortium"]
[2,"C.L.A.S.S.",66036,10,"Lambton Kent DSB",null,null,null,null,null,null,null,11,"Halton Student Transportation Services "]
[2,"C.L.A.S.S.",67040,39,"St. Clair Catholic DSB",null,null,null,null,null,null,null,9,"Hamilton-Wentworth Student Transportation Services (HWSTS)"]
[18,"Central Ontario",67318,64,"CSC MonAvenir",null,null,null,null,null,null,null,4,"Huron Perth Student Transportation Services"]
[18,"Central Ontario",66079,14,"Kawartha Pine Ridge DSB",null,null,null,null,null,null,null,8,"Niagara Student Transportation Services Corporation"]
[18,"Central Ontario",67067,41,"PVNC Catholic DSB",null,null,null,null,null,null,null,23,"Nipissing Parry-Sound Student Transportation Services/Services de transport scolaire Nipissing-Parry Sound"]
[16,"Durham",67105,45,"Durham Catholic DSB",null,null,null,null,null,null,null,24,"North East Tri-Board Student Transportation"]
[16,"Durham",66060,13,"Durham DSB",null,null,null,null,null,null,null,30,"Northwestern Ontario Student Services Consortium"]
[27,"East of Thunder Bay",29130,62,"CSD cath. des Aurores boréales",null,null,null,null,null,null,null,22,"Ottawa Student Transportation Authority"]
[27,"East of Thunder Bay",28118,57,"CSP du Grand Nord de l'Ontario",null,null,null,null,null,null,null,29,"Rainy River District Transportation Services Consortium"]
[27,"East of Thunder Bay",29076,34.200000000000003,"Superior North Catholic DSB",null,null,null,null,null,null,null,20,"Renfrew County Joint Transportation Consortium"]
[27,"East of Thunder Bay",28070,6.2,"Superior-Greenstone DSB",null,null,null,null,null,null,null,10,"Service de transport de Wellington-Dufferin Student Transportation Services"]
[21,"Eastern Ontario",67172,52,"Cath DSB of Eastern Ontario",null,null,null,null,null,null,null,31,"Service de transport Francobus"]
[21,"Eastern Ontario",66192,26,"Upper Canada DSB",null,null,null,null,null,null,null,15,"Simcoe County Student Transportation Consortium"]
[31,"Francobus",66303,58,"Conseil scolaire Viamonde",null,null,null,null,null,null,null,3,"Southwestern Ontario Student Transportation Services"]
[31,"Francobus",67318,64,"CSC MonAvenir",null,null,null,null,null,null,null,28,"Student Transportation  Services of Thunder Bay"]
[31,"Francobus",67300,63,"CSC Providence",null,null,null,null,null,null,null,21,"Student Transportation of Eastern Ontario (STEO)"]
[33,"French Ottawa",66311,59,"CEP de l'Est de l'Ontario",null,null,null,null,null,null,null,12,"Student Transportation of Peel Region"]
[33,"French Ottawa",67334,66,"CSD cath. Centre-Est de l'Ont.",null,null,null,null,null,null,null,5,"Student Transportation Service Consortium of Grey-Bruce"]
[34,"Grandes Rivières",29106,60.1,"CSD cath. des Grandes Rivières",null,null,null,null,null,null,null,6,"Student Transportation Services of Brant Haldimand Norfolk"]
[34,"Grandes Rivières",28100,56,"CSD du Nord-Est de l'Ontario",null,null,null,null,null,null,null,18,"Student Transportation Services of Central Ontario"]
[5,"Grey-Bruce",66001,7,"Bluewater DSB",null,null,null,null,null,null,null,7,"Student Transportation Services of Waterloo Region (STSWR) inc."]
[5,"Grey-Bruce",67008,35,"Bruce-Grey Catholic DSB",null,null,null,null,null,null,null,14,"Student Transportation Services of York Region"]
[11,"Halton",67113,46,"Halton Catholic DSB",null,null,null,null,null,null,null,25,"Sudbury Student Services Consortium/Consortium de services aux élèves de Sudbury"]
[11,"Halton",66133,20,"Halton DSB",null,null,null,null,null,null,null,13,"Toronto Student Transportation Group "]
[9,"Hamilton",67121,47,"Hamilton-Wentworth Cath DSB",null,null,null,null,null,null,null,19,"Tri-Board Student Transportation Services Inc."]
[9,"Hamilton",66141,21,"Hamilton-Wentworth DSB",null,null,null,null,null,null,null,17,"Trillium Lakelands District School Board"]
[4,"Huron Perth",66010,8,"Avon Maitland DSB",null,null,null,null,null,null,null,1,"Windsor-Essex Student Transportation Services/Service de transport des élèves – Windsor-Essex"]
[4,"Huron Perth",67016,36,"Huron-Perth Catholic DSB"]
[32,"l'Est",66311,59,"CEP de l'Est de l'Ontario"]
[32,"l'Est",67326,65,"CSD cath. de l'Est ontarien"]
[24,"NE Tri-board",28100,56,"CSD du Nord-Est de l'Ontario"]
[24,"NE Tri-board",28002,1,"DSB Ontario North East"]
[24,"NE Tri-board",29009,30.1,"Northeastern Catholic DSB"]
[8,"Niagara",66150,22,"DSB of Niagara"]
[8,"Niagara",67156,50,"Niagara Catholic DSB"]
[23,"Nipissing Parry-Sound",29114,60.2,"CSD catholique Franco-Nord"]
[23,"Nipissing Parry-Sound",28100,56,"CSD du Nord-Est de l'Ontario"]
[23,"Nipissing Parry-Sound",28037,4,"Near North DSB"]
[23,"Nipissing Parry-Sound",29017,30.2,"Nipissing-Parry Sound Cath DSB"]
[30,"Northwestern Ontario",29130,62,"CSD cath. des Aurores boréales"]
[30,"Northwestern Ontario",28045,5.0999999999999996,"Keewatin-Patricia DSB"]
[30,"Northwestern Ontario",29050,33.200000000000003,"Kenora Catholic DSB"]
[30,"Northwestern Ontario",29041,33.1,"Northwest Catholic DSB"]
[22,"Ottawa",67180,53,"Ottawa Catholic DSB"]
[22,"Ottawa",66184,25,"Ottawa-Carleton DSB"]
[12,"Peel",67083,43,"Dufferin-Peel Catholic DSB"]
[12,"Peel",66125,19,"Peel DSB"]
[29,"Rainy River",29041,33.1,"Northwest Catholic DSB"]
[29,"Rainy River",28053,5.2,"Rainy River DSB"]
[20,"Renfrew",67199,54,"Renfrew County Catholic DSB"]
[20,"Renfrew",66214,28,"Renfrew County DSB"]
[15,"Simcoe",66109,17,"Simcoe County DSB"]
[15,"Simcoe",67091,44,"Simcoe Muskoka Catholic DSB"]
[3,"Southwestern",67032,38,"London Dist. Catholic School"]
[3,"Southwestern",66044,11,"Thames Valley DSB"]
[25,"Sudbury",29122,61,"CSD cath. du Nouvel-Ontario"]
[25,"Sudbury",28118,57,"CSP du Grand Nord de l'Ontario"]
[25,"Sudbury",29025,31,"Huron-Superior Catholic DSB"]
[25,"Sudbury",28029,3,"Rainbow DSB"]
[25,"Sudbury",29033,32,"Sudbury Catholic DSB"]
[28,"Thunder Bay",29130,62,"CSD cath. des Aurores boréales"]
[28,"Thunder Bay",28061,6.1,"Lakehead DSB"]
[28,"Thunder Bay",29068,34.1,"Thunder Bay Catholic DSB"]
[13,"Toronto",67059,40,"Toronto Catholic DSB"]
[13,"Toronto",66052,12,"Toronto DSB"]
[19,"Tri-board",67202,55,"Algonquin & Lakeshore Cath DSB"]
[19,"Tri-board",66222,29,"Hastings & Prince Edward DSB"]
[19,"Tri-board",66206,27,"Limestone DSB"]
[19,"Tri-board",66214,28,"Renfrew County DSB"]
[17,"Trillium-Lakelands",67067,41,"PVNC Catholic DSB"]
[17,"Trillium-Lakelands",67091,44,"Simcoe Muskoka Catholic DSB"]
[17,"Trillium-Lakelands",66087,15,"Trillium Lakelands DSB"]
[7,"Waterloo",67148,49,"Waterloo Catholic DSB"]
[7,"Waterloo",66176,24,"Waterloo Region DSB"]
[10,"Wellington-Dufferin",66303,58,"Conseil scolaire Viamonde"]
[10,"Wellington-Dufferin",67318,64,"CSC MonAvenir"]
[10,"Wellington-Dufferin",67083,43,"Dufferin-Peel Catholic DSB"]
[10,"Wellington-Dufferin",66117,18,"Upper Grand DSB"]
[10,"Wellington-Dufferin",67130,48,"Wellington Catholic DSB"]
[1,"Windsor-Essex",66303,58,"Conseil scolaire Viamonde"]
[1,"Windsor-Essex",67300,63,"CSC Providence"]
[1,"Windsor-Essex",66028,9,"Greater Essex County DSB"]
[1,"Windsor-Essex",67024,37,"Windsor-Essex Catholic DSB"]
[14,"York",67075,42,"York Catholic DSB"]
[14,"York",66095,16,"York Region DSB"]